bitfinex-derivatives/quotes_ETHF0:USTF0_20241207
["timestamp","ask_amount","ask_price","bid_price","bid_amount"]
[1733534455710,0.17473,4000.4,4000.2,0.17473]
[1733534455915,1.95123032,4000.5,3999.7,1.5148]
[1733534456111,0.4105,4001.0,3999.7,1.5148]
[1733534456112,0.17471,4000.8,4000.6,0.17471]
[1733534456619,0.17471,4000.8,3999.8,0.43688]
[1733534456620,3.2078,4000.7,4000.4,0.719]
[1733534456919,3.2078,4000.7,4000.6,0.17471]
[1733534457824,3.2078,4000.7,4000.6,0.56481]
[1733534458213,3.2078,4000.7,4000.6,0.96291]
[1733534459024,3.19414905,4000.7,4000.6,0.96291]
[1733534459419,3.2078,4001.2,4000.6,3.996]
[1733534459618,3.2078,4001.2,4001.1,0.17469]
[1733534459920,3.2078,4001.2,4001.1,0.89369]
[1733534460524,0.17467,4001.7,4001.5,0.17467]
[1733534460921,0.3976,4001.8,4001.7,0.17467]
[1733534461120,0.3976,4001.8,4001.2,0.394]
[1733534461720,0.3976,4001.8,4001.7,0.17467]
[1733534462420,5.53683032,4001.9,4001.2,0.394]
[1733534462622,5.71149032,4001.9,4001.7,0.17466]
[1733534462826,5.71149032,4001.9,4001.2,0.394]
[1733534462827,5.15903032,4001.9,4001.2,0.394]
[1733534463029,5.15903032,4001.9,4001.8,0.17466]
[1733534463422,3.2078,4001.9,4001.8,0.17466]
[1733534464830,3.2078,4001.9,4001.8,0.89266]
[1733534470828,0.17465,4002.1,4001.9,0.17465]
[1733534471028,5.15903032,4002.3,4001.9,0.17465]
[1733534471029,0.17465,4002.2,4001.9,0.17465]
[1733534471229,0.17465,4002.2,4001.8,0.718]
[1733534471429,0.17465,4002.2,4002.0,0.17465]
[1733534473132,3.2078,4002.3,4002.2,0.17464]
[1733534473433,0.17464,4002.3,4002.1,0.17465]
[1733534473732,0.17464,4002.2,4002.0,0.17465]
[1733534473934,0.8059,4002.6,4001.9,0.4053]
[1733534474330,0.17465,4002.1,4001.9,0.57996]
[1733534474530,3.2078,4002.3,4001.9,0.4053]
[1733534474739,3.2078,4002.3,4001.9,0.57995]
[1733534474932,0.17465,4002.1,4001.9,0.17465]
[1733534475125,0.17465,4002.1,3999.1,17.5899813]
[1733534475126,0.1747,4000.9,4000.8,0.20498235]
[1733534475327,0.43666,4001.9,4000.7,0.42435861]
[1733534475328,0.17471,4000.8,4000.7,0.24964861]
[1733534475731,1.95123032,4001.2,4000.7,0.24964861]
[1733534475936,0.7937,4001.1,4000.7,0.24964861]
[1733534476334,0.1747,4000.9,4000.7,0.42435861]
[1733534476735,0.7937,4001.1,4000.7,0.24964861]
[1733534476935,0.96839,4001.1,4000.9,0.1747]
[1733534477143,0.96839,4001.1,4001.0,0.1747]
[1733534477144,0.7937,4001.1,4001.0,0.1747]
[1733534477336,1.95123032,4001.6,4000.7,3.45744861]
[1733534477643,0.17468,4001.5,4001.3,0.17468]
[1733534477936,0.17468,4001.4,4001.2,0.17469]
[1733534478143,2.12590032,4001.6,4001.3,0.17468]
[1733534478342,1.95123032,4001.6,4000.8,0.8113]
[1733534478639,3.2078,4001.5,4000.7,0.24964861]
[1733534478847,0.17471,4000.8,4000.7,0.24964861]
[1733534479449,0.1747,4000.9,4000.7,0.42435861]
[1733534480037,0.17471,4000.8,4000.7,0.24964861]
[1733534480234,0.58971,4000.8,4000.7,0.24964861]
[1733534481136,0.58971,4000.8,4000.7,0.42435861]
[1733534481337,0.58971,4000.8,4000.7,0.24964861]
[1733534481841,0.17473,4000.3,4000.2,3.2078]
[1733534482136,3.2078,4000.4,3999.8,0.24964861]
[1733534482338,3.2078,4000.4,3999.8,0.96764861]
[1733534482339,0.17475,3999.9,3999.8,0.96764861]
[1733534482530,0.17474,4000.0,3999.8,1.14239861]
[1733534482736,0.17474,4000.0,3999.9,0.17475]
[1733534482940,0.17474,4000.1,3999.8,0.42439861]
[1733534483143,0.17474,4000.1,3999.9,0.17475]
[1733534483332,0.4047,4000.2,3999.8,0.24964861]
[1733534483535,0.17474,4000.1,3999.9,0.17475]
[1733534483846,0.17474,4000.0,3999.8,0.42439861]
[1733534484049,0.17475,3999.9,3999.8,0.24964861]
[1733534484345,0.4047,4000.2,3999.8,0.24964861]
[1733534484543,0.17474,4000.0,3999.8,0.42439861]
[1733534485246,0.17474,4000.0,3999.8,0.24964861]
[1733534486034,0.17474,4000.0,3999.8,0.42439861]
[1733534486234,0.17474,4000.1,3999.9,0.17475]
[1733534486543,8.09392391,4000.4,3999.8,0.24964861]
[1733534486544,3.2078,4000.4,4000.3,0.17473]
[1733534487238,3.2078,4000.4,4000.2,0.17473]
[1733534487644,3.74529359,4000.8,3999.9,0.3812]
[1733534487840,0.17474,4000.2,3999.9,0.55594]
[1733534488041,3.74529359,4000.8,3999.9,0.3812]
[1733534488343,0.8104,4000.8,4000.1,0.17473]
[1733534488648,0.17473,4000.4,4000.1,0.17473]
[1733534489348,0.17473,4000.4,4000.0,0.708]
[1733534489547,0.8104,4000.8,4000.1,0.391]
[1733534489749,0.17473,4000.3,4000.1,0.391]
[1733534490449,0.17473,4000.3,4000.1,0.56574]
[1733534490646,2.76163032,4000.8,4000.1,0.56574]
[1733534490854,0.17473,4000.4,4000.2,0.17473]
[1733534491547,0.17473,4000.4,4000.1,0.56573]
[1733534491849,0.17473,4000.4,4000.1,0.391]
[1733534492049,3.2078,4000.3,4000.0,0.708]
[1733534492349,0.17475,3999.9,3999.8,0.24964861]
[1733534492952,0.17475,3999.9,3999.8,0.42439861]
[1733534493258,0.17475,3999.9,3999.8,0.24964861]
[1733534493747,3.2078,4000.3,3999.8,0.42439861]
[1733534493945,3.2078,4000.3,3999.8,0.24964861]
[1733534493946,0.17475,3999.9,3999.8,0.24964861]
[1733534494141,3.2078,4000.3,3999.8,0.24964861]
[1733534494345,0.17475,3999.9,3999.8,0.24964861]
[1733534494554,3.2078,4000.3,3999.8,0.24964861]
[1733534494855,0.17474,4000.0,3999.8,0.42439861]
[1733534495055,0.17474,4000.1,3999.9,0.17475]
[1733534495352,0.17474,4000.0,3999.8,0.42439861]
[1733534495548,0.17474,4000.1,3999.9,0.17474]
[1733534495755,0.17474,4000.0,3999.8,0.42439861]
[1733534496252,3.2078,4000.3,3999.8,0.24964861]
[1733534496554,3.38253,4000.3,4000.1,0.17474]
[1733534496751,3.2078,4000.3,4000.2,0.17473]
[1733534496954,3.2078,4000.3,3999.9,0.3997]
[1733534497255,3.2078,4000.3,4000.0,0.17474]
[1733534497457,3.2078,4000.3,3999.9,0.3997]
[1733534497661,3.2078,4000.3,4000.1,0.17473]
[1733534497861,3.2078,4000.3,3999.9,0.3997]
[1733534498158,3.2078,4000.3,4000.1,0.17473]
[1733534498365,3.2078,4000.3,4000.2,0.17473]
[1733534498558,3.2078,4000.3,3999.9,0.59673545]
[1733534498559,3.2078,4000.3,3999.9,0.3997]
[1733534498764,0.17474,4000.0,3999.8,0.42439861]
[1733534498963,0.17473,4000.2,4000.0,0.17474]
[1733534499259,0.17473,4000.2,3999.8,0.45117124]
[1733534499462,0.17473,4000.2,3999.8,0.24964861]
[1733534499759,0.17473,4000.2,3999.9,0.17474]
[1733534499955,3.2078,4000.3,3999.9,0.17474]
[1733534500161,0.17474,4000.0,3999.9,0.708]
[1733534500361,0.17473,4000.2,3999.9,0.708]
[1733534500555,3.2078,4000.3,3999.9,0.708]
[1733534500959,0.17474,4000.1,3999.9,0.708]
[1733534501666,0.17474,4000.2,4000.0,0.17474]
[1733534502059,3.2078,4000.3,3999.9,0.708]
[1733534502363,0.17474,4000.1,3999.9,0.708]
[1733534502663,0.17473,4000.2,3999.8,0.95764861]
[1733534502867,3.2078,4000.3,3999.8,0.95764861]
[1733534503163,0.17474,4000.0,3999.8,1.13239861]
[1733534503364,0.17474,4000.1,3999.9,0.17475]
[1733534503556,3.2078,4000.3,4000.2,0.17473]
[1733534504865,3.2078,4000.9,4000.8,0.1747]
[1733534505160,2.12592032,4001.2,4000.9,0.1747]
[1733534505467,2.12592032,4001.2,4000.7,0.3819]
[1733534505767,1.95123032,4001.2,4000.7,0.3819]
[1733534505959,3.2078,4001.5,4000.7,0.3819]
[1733534506157,3.38248,4001.5,4000.9,0.1747]
[1733534506361,3.38248,4001.5,4000.8,0.3767]
[1733534506562,3.38248,4001.5,4001.2,0.17469]
[1733534506760,3.2078,4001.5,4000.9,0.4007]
[1733534506963,3.2078,4001.5,4001.4,0.17468]
[1733534507163,3.2078,4001.5,4000.9,0.83746]
[1733534507164,3.2078,4001.5,4000.9,0.4007]
[1733534507359,3.2078,4001.5,4001.2,0.17469]
[1733534507360,3.38248,4001.5,4001.2,0.17469]
[1733534507762,3.38248,4001.5,4001.2,0.88269]
[1733534507957,3.38248,4001.5,4001.2,0.708]
[1733534507958,0.17468,4001.3,4001.2,0.708]
[1733534509764,0.17471,4000.8,4000.7,0.3819]
[1733534509965,0.17471,4000.8,4000.2,0.24975523]
[1733534509966,3.2078,4000.9,4000.3,1.108]
[1733534510166,0.17472,4000.6,4000.5,0.17472]
[1733534510467,0.17472,4000.5,4000.4,0.17472]
[1733534510864,0.17471,4000.7,4000.4,0.17472]
[1733534511065,0.7877,4000.8,4000.3,1.108]
[1733534511468,0.17472,4000.4,4000.3,1.108]
[1733534511672,0.17472,4000.4,4000.3,0.708]
[1733534511872,0.17473,4000.3,4000.2,0.24975523]
[1733534512174,0.17473,4000.3,4000.2,0.42448523]
[1733534512370,0.17473,4000.3,4000.2,0.24975523]
[1733534513765,0.17474,4000.0,3999.9,1.108]
[1733534513965,0.17474,4000.0,3999.9,0.708]
[1733534515075,0.17475,3999.9,3999.8,0.24964861]
[1733534515671,0.3895,4000.2,3999.3,0.3773]
[1733534515672,3.2078,4000.0,3999.3,0.3773]
[1733534515867,1.95123032,3999.7,3999.2,0.707]
[1733534516062,0.17477,3999.3,3999.2,0.707]
[1733534516366,0.17478,3999.2,3999.1,0.17478]
[1733534516874,0.17477,3999.3,3999.2,0.17477]
[1733534517068,1.95123032,3999.7,3999.0,0.24964861]
[1733534517275,0.17478,3999.2,3999.1,0.17478]
[1733534517473,1.95123032,3999.7,3999.0,0.24964861]
[1733534517775,0.17478,3999.2,3999.1,0.17478]
[1733534518974,0.17478,3999.2,3999.0,0.42442861]
[1733534519369,0.17478,3999.2,3999.0,0.24964861]
[1733534519671,0.17478,3999.2,3999.1,0.17478]
[1733534519872,0.17478,3999.2,3999.0,0.24964861]
[1733534520072,0.4081,3999.5,3999.0,0.24964861]
[1733534520274,0.17478,3999.2,3999.0,0.24964861]
[1733534520574,0.17478,3999.2,3999.0,0.42442861]
[1733534520774,0.17478,3999.2,3999.1,0.17478]
[1733534521173,0.17478,3999.2,3999.0,0.42442861]
[1733534521675,0.4081,3999.5,3999.0,0.24964861]
[1733534521872,3.2078,3999.6,3999.0,0.24964861]
[1733534522070,3.2078,3999.6,3999.5,0.17476]
[1733534522475,0.17475,3999.9,3999.6,0.17476]
[1733534522677,2.12597032,4000.1,3999.5,0.4082]
[1733534522871,0.17474,4000.0,3999.8,0.17475]
[1733534523077,0.17474,4000.0,3999.6,0.3983]
[1733534523277,0.17474,4000.0,3999.7,0.17475]
[1733534523980,0.17474,4000.0,3999.8,0.17475]
[1733534524782,1.95123032,4000.1,3999.6,0.3983]
[1733534524976,1.95123032,4000.1,3999.8,0.17475]
[1733534525184,1.95123032,4000.1,4000.0,0.17474]
[1733534525375,1.95123032,4000.1,3999.6,0.3983]
[1733534525376,2.12597032,4000.1,3999.9,0.17474]
[1733534526177,0.57223,4000.2,4000.0,0.17474]
[1733534526378,0.3975,4000.2,3999.6,3.6061]
[1733534526686,0.3975,4000.2,3999.6,3.2078]
[1733534526687,0.17475,3999.7,3999.6,3.2078]
[1733534526878,0.17477,3999.3,3999.1,0.97908]
[1733534527276,0.3851,3999.6,3999.1,0.4131]
[1733534527485,0.17478,3999.2,3999.1,0.4131]
[1733534527681,0.17477,3999.3,3999.2,0.17478]
[1733534528384,0.17477,3999.4,3999.3,0.17477]
[1733534529077,0.17477,3999.3,3999.2,0.17477]
[1733534529686,0.7655,3999.6,3999.1,0.4131]
[1733534529985,0.17477,3999.3,3999.2,0.17477]
[1733534530378,0.17476,3999.5,3999.2,0.17477]
[1733534530579,0.17477,3999.3,3999.2,0.17477]
[1733534530787,0.7655,3999.6,3999.1,0.4131]
[1733534530788,0.17476,3999.5,3999.1,0.4131]
[1733534531083,0.17476,3999.5,3999.4,0.17477]
[1733534531484,0.17477,3999.3,3999.2,0.17478]
[1733534532185,0.7655,3999.6,3999.1,0.4131]
[1733534532186,0.17477,3999.4,3999.3,0.17477]
[1733534532485,0.7655,3999.6,3999.1,0.4131]
[1733534532680,0.17478,3999.3,3999.2,0.17477]
[1733534532881,0.17478,3999.3,3999.1,0.4131]
[1733534532882,0.7655,3999.6,3999.1,0.4131]
[1733534533075,0.17477,3999.4,3999.3,0.17477]
[1733534533376,0.17477,3999.4,3999.1,0.4131]
[1733534533377,5.15903032,3999.7,3999.1,0.4131]
[1733534533581,0.17476,3999.5,3999.4,0.17477]
[1733534533783,5.15903032,3999.7,3999.1,0.4131]
[1733534533981,1.95123032,3999.3,3999.0,0.24964861]
[1733534534182,0.17478,3999.1,3999.0,0.24964861]
[1733534534780,0.4118,3999.2,3999.0,0.24964861]
[1733534535084,3.2078,3999.7,3999.6,0.17476]
[1733534535283,0.17473,4000.2,4000.1,0.17474]
[1733534535481,0.17474,4000.1,3999.7,0.17475]
[1733534535682,0.17474,4000.1,4000.0,0.17474]
[1733534536383,5.15903032,4000.5,3999.8,0.3873]
[1733534536584,5.15903032,4000.5,3999.9,0.3872]
[1733534536789,0.17475,3999.9,3999.8,1.26905]
[1733534536987,0.17475,3999.9,3999.8,1.0943]
[1733534537285,0.17475,3999.9,3999.8,1.26905]
[1733534537485,0.17474,4000.0,3999.9,0.17474]
[1733534538182,5.15903032,4000.5,3999.8,0.707]
[1733534538386,0.17473,4000.4,4000.3,0.17473]
[1733534538689,5.15903032,4000.5,3999.8,0.707]
[1733534538883,3.2078,4000.5,4000.4,0.17472]
[1733534539890,0.17472,4000.6,4000.1,0.3761]
[1733534540091,0.17472,4000.6,4000.5,0.17472]
[1733534540383,1.95123032,4000.9,4000.2,0.43684]
[1733534540592,2.12593032,4000.9,4000.7,0.17471]
[1733534540786,2.12593032,4000.9,4000.2,3.64464]
[1733534540981,2.12593032,4000.9,4000.7,0.17471]
[1733534541182,1.95123032,4000.9,4000.2,3.2078]
[1733534541382,0.17471,4000.8,4000.2,3.2078]
[1733534541893,0.17471,4000.8,4000.6,0.17471]
[1733534543195,2.12593032,4000.9,4000.6,0.17471]
[1733534543484,0.17471,4000.8,4000.6,0.17471]
[1733534543892,0.17471,4000.7,4000.5,0.17472]
[1733534544889,0.17471,4000.8,4000.6,0.17472]
[1733534545094,0.17471,4000.8,4000.6,0.17471]
[1733534546109,1.95123032,4000.9,4000.4,0.707]
[1733534546398,0.17473,4000.2,3999.9,0.17475]
[1733534546992,0.17473,4000.2,4000.0,0.17474]
[1733534547491,1.95123032,4000.5,3999.8,3.45755149]
[1733534547492,0.17473,4000.4,3999.9,0.17475]
[1733534547691,0.17473,4000.3,4000.2,0.17473]
[1733534547999,1.95123032,4000.5,3999.8,3.45755149]
[1733534548198,0.17473,4000.2,4000.1,0.17473]
[1733534548897,1.95123032,4000.5,4000.1,0.17473]
[1733534549100,1.95123032,4000.5,3999.9,0.17474]
[1733534549400,1.95123032,4000.5,3999.8,3.45755149]
[1733534549603,0.17474,4000.1,4000.0,0.17474]
[1733534549797,1.95123032,4000.5,3999.8,3.45755149]
[1733534549798,0.17472,4000.4,3999.9,0.17474]
[1733534549996,0.3874,4000.3,3999.8,3.45755149]
[1733534550199,0.17475,3999.9,3999.8,3.63230149]
[1733534550800,0.17474,4000.2,4000.1,0.17474]
[1733534551002,3.2078,4000.4,3999.8,3.45755149]
[1733534551199,3.2078,4000.4,4000.3,0.17473]
[1733534551200,3.38253,4000.4,4000.3,0.17473]
[1733534551395,0.8009,4000.7,3999.8,3.45755149]
[1733534551599,0.17473,4000.3,4000.2,0.17473]
[1733534552103,0.8009,4000.7,3999.8,3.45755149]
[1733534552306,0.8009,4000.7,4000.1,0.17473]
[1733534552307,0.17474,4000.2,4000.1,0.17473]
[1733534552607,0.17474,4000.1,4000.0,0.17474]
[1733534553106,0.17473,4000.3,4000.2,0.17473]
[1733534554001,3.38252,4000.4,4000.3,0.17473]
[1733534554711,3.2078,4000.4,4000.3,0.17473]
[1733534554999,0.17475,3999.9,3999.8,0.24975149]
[1733534555598,0.17475,3999.9,3999.8,0.42450149]
[1733534558208,0.17475,3999.9,3999.8,0.24975149]
[1733534558400,0.17475,3999.9,3999.8,0.42450149]
[1733534558803,0.17475,3999.9,3999.8,0.24975149]
[1733534559204,3.2078,4000.0,3999.2,3.2078]
[1733534559402,3.2078,3999.6,3999.1,0.17478]
[1733534559611,0.17478,3999.2,3999.1,0.17478]
[1733534561512,0.17477,3999.4,3999.3,0.17477]
[1733534561706,2.93489359,3999.5,3999.0,0.24964861]
[1733534561905,2.93489359,3999.8,3999.0,3.45744861]
[1733534562209,0.17477,3999.4,3999.3,0.17477]
[1733534562807,0.17475,3999.8,3999.7,0.17475]
[1733534563005,1.95123032,3999.9,3999.3,0.707]
[1733534563205,0.17477,3999.5,3999.3,0.88177]
[1733534563505,1.95123032,3999.9,3999.4,0.17477]
[1733534563506,0.17476,3999.6,3999.4,0.17477]
[1733534564013,0.17476,3999.6,3999.5,0.17476]
[1733534564905,1.95123032,3999.9,3999.3,0.707]
[1733534565208,1.95123032,3999.9,3999.4,0.4149]
[1733534565511,3.2078,4000.5,3999.5,0.4124]
[1733534565712,0.17473,4000.3,4000.1,0.17473]
[1733534566009,0.17473,4000.3,4000.2,0.4149]
[1733534566702,3.2078,4000.5,4000.2,0.4149]
[1733534566906,3.38252,4000.5,4000.3,0.55593]
[1733534567101,3.38252,4000.5,4000.4,0.17472]
[1733534567313,3.2078,4000.5,4000.4,0.17472]
[1733534568015,0.17471,4000.7,4000.5,0.17472]
[1733534568209,0.4175,4000.9,4000.3,0.7787]
[1733534568408,5.15903032,4001.0,4000.3,0.97429166]
[1733534568631,5.15903032,4001.0,4000.5,0.17472]
[1733534568915,5.15903032,4001.0,4000.6,0.17471]
[1733534569108,0.17471,4000.8,4000.6,0.17471]
[1733534570210,0.1747,4000.9,4000.3,0.97429166]
[1733534570408,0.1747,4000.9,4000.7,0.17471]
[1733534570608,1.95123032,4001.0,4000.3,4.18209166]
[1733534570808,2.93489359,4001.0,4000.9,0.1747]
[1733534571016,2.93489359,4001.1,4001.0,0.1747]
[1733534571216,2.93489359,4001.3,4001.1,0.17469]
[1733534571417,2.93489359,4001.3,4000.5,0.4368]
[1733534571714,3.10958359,4001.3,4001.1,0.17469]
[1733534572116,2.93489359,4001.3,4001.1,0.17469]
[1733534572313,0.1747,4001.1,4000.8,0.1747]
[1733534572612,1.95123032,4001.0,4000.3,3.9865]
[1733534572809,1.95123032,4001.0,4000.5,0.17472]
[1733534572810,4.88612391,4001.0,4000.5,0.17472]
[1733534573015,0.17471,4000.8,4000.5,0.17472]
[1733534573211,2.93489359,4000.9,4000.6,0.17471]
[1733534573420,3.10959359,4000.9,4000.7,0.17471]
[1733534573608,3.10959359,4000.9,4000.3,3.589]
[1733534573810,0.17471,4000.8,4000.6,0.17471]
[1733534574015,2.93489359,4000.9,4000.3,3.589]
[1733534574325,0.1747,4000.9,4000.6,0.17471]
[1733534574617,2.93489359,4001.0,4000.9,0.1747]
[1733534574812,0.1747,4001.1,4000.9,0.1747]
[1733534575216,3.10958359,4001.2,4000.9,0.1747]
[1733534575719,3.10958359,4001.2,4000.7,0.17471]
[1733534575909,3.10958359,4001.2,4000.7,0.37703961]
[1733534576112,3.10958359,4001.2,4001.0,0.1747]
[1733534576411,0.17469,4001.2,4001.0,0.1747]
[1733534577215,0.17469,4001.2,4000.8,0.1747]
[1733534577521,0.17469,4001.2,4000.6,0.24973403]
[1733534577522,0.1747,4001.1,4000.9,0.1747]
[1733534578221,2.34853032,4001.4,4000.7,0.17471]
[1733534578222,0.1747,4000.9,4000.7,0.17471]
[1733534578423,0.1747,4001.0,4000.8,0.17471]
[1733534578919,0.1747,4001.0,4000.8,0.1747]
[1733534579113,0.1747,4001.1,4000.6,0.24973403]
[1733534579309,0.17471,4000.8,4000.6,0.24973403]
[1733534579618,0.17471,4000.7,4000.6,0.42444403]
[1733534579814,0.17472,4000.5,4000.3,3.76372]
[1733534580019,5.15903032,4001.0,4000.3,3.76372]
[1733534580020,0.17472,4000.4,4000.3,3.76372]
[1733534580415,8.09392391,4001.0,4000.3,3.589]
[1733534580616,8.47542391,4001.0,4000.3,3.589]
[1733534580809,0.17472,4000.4,4000.3,3.76373]
[1733534581009,0.17472,4000.6,4000.5,0.17472]
[1733534581414,0.17472,4000.4,4000.3,3.589]
[1733534582024,0.17472,4000.4,4000.3,3.2078]
[1733534582222,0.17472,4000.4,4000.3,3.45749786]
[1733534582822,0.17472,4000.4,4000.3,3.63222786]
[1733534585019,0.17472,4000.4,4000.3,0.24969786]
[1733534586418,0.17472,4000.4,4000.3,0.42442786]
[1733534587022,0.17472,4000.4,4000.3,0.24969786]
[1733534587920,5.86011507,4000.6,3999.9,0.3977]
[1733534588222,2.93971423,4000.1,3999.7,0.95673403]
[1733534588414,4.89094455,3999.8,3999.3,0.3921]
[1733534588613,0.17478,3999.2,3999.1,0.17478]
[1733534588917,3.11499479,3999.2,3999.1,0.17478]
[1733534589122,0.17478,3999.2,3999.1,0.17478]
[1733534589317,0.17478,3999.2,3999.1,0.42451403]
[1733534590923,2.94021479,3999.3,3999.2,0.17478]
[1733534591224,2.94021479,3999.3,3999.1,0.24973403]
[1733534591425,0.17478,3999.2,3999.1,0.42451403]
[1733534592617,2.94021479,3999.3,3999.2,0.17478]
[1733534592823,0.17477,3999.3,3999.1,0.42451403]
[1733534593518,0.17476,3999.5,3999.1,0.42451403]
[1733534593722,0.17477,3999.3,3999.1,0.42451403]
[1733534594325,3.2078,3999.6,3999.1,0.24973403]
[1733534594722,3.2078,3999.6,3999.5,0.17476]
[1733534595030,3.2078,3999.6,3999.1,0.24973403]
[1733534595328,3.38256,3999.6,3999.4,0.17477]
[1733534595631,3.38256,3999.6,3999.1,0.24973403]
[1733534595830,3.38256,3999.6,3999.5,0.17476]
[1733534596030,3.2078,3999.6,3999.1,0.24973403]
[1733534596333,3.2078,3999.6,3999.1,0.42451403]
[1733534596522,0.17477,3999.3,3999.1,0.24973403]
[1733534596724,0.17477,3999.3,3999.1,0.42451403]
[1733534597333,3.2078,3999.6,3999.1,0.24973403]
[1733534597630,0.17477,3999.3,3999.2,0.17478]
[1733534598131,3.2078,3999.6,3999.1,0.24973403]
[1733534598326,3.2078,3999.6,3999.3,0.17477]
[1733534598522,3.2078,3999.6,3999.1,0.24973403]
[1733534598719,1.95123032,3999.8,3999.1,0.24973403]
[1733534598720,0.17475,3999.8,3999.1,0.24973403]
[1733534598924,0.17475,3999.8,3999.7,0.17475]
[1733534599330,0.8285,4000.0,3999.1,0.24973403]
[1733534599525,0.17475,3999.8,3999.6,0.17476]
[1733534599829,0.8285,4000.0,3999.6,0.17476]
[1733534599830,0.17476,3999.7,3999.6,0.17476]
[1733534600226,0.17476,3999.7,3999.3,0.707]
[1733534600528,0.17477,3999.5,3999.4,0.17477]
[1733534600731,1.95123032,3999.9,3999.4,0.17477]
[1733534600927,0.17477,3999.4,3999.3,0.707]
[1733534602528,3.2078,3999.7,3999.3,0.707]
[1733534602736,0.17477,3999.5,3999.4,0.17476]
[1733534602928,3.2078,3999.7,3999.3,0.707]
[1733534603129,0.17477,3999.4,3999.3,0.88177]
[1733534603430,0.17476,3999.6,3999.5,0.17476]
[1733534603628,3.2078,3999.7,3999.3,0.707]
[1733534603830,0.17477,3999.5,3999.4,0.17477]
[1733534604028,3.2078,3999.7,3999.6,0.17476]
[1733534604226,3.2078,3999.7,3999.3,0.707]
[1733534604428,0.17476,3999.6,3999.5,0.17476]
[1733534604631,3.2078,3999.7,3999.3,0.707]
[1733534604831,3.2078,3999.7,3999.6,0.17476]
[1733534605831,5.15903032,4000.3,3999.4,3.2078]
[1733534606130,0.17476,3999.7,3999.6,0.17476]
[1733534606332,0.17475,3999.7,3999.6,0.17476]
[1733534606530,0.17475,3999.8,3999.6,0.17476]
[1733534606724,0.17476,3999.6,3999.5,0.88076]
[1733534607036,0.43684,4000.2,3999.5,0.706]
[1733534607334,0.17475,3999.7,3999.6,0.17476]
[1733534608338,2.94021479,4000.1,3999.6,0.17476]
[1733534608647,2.94021479,4000.1,3999.5,0.17476]
[1733534608932,0.17476,3999.6,3999.2,0.706]
[1733534609237,0.17476,3999.6,3999.5,0.17476]
[1733534609632,0.17476,3999.6,3999.2,0.706]
[1733534609835,0.3941,3999.7,3999.2,0.706]
[1733534610031,0.17476,3999.6,3999.5,0.17476]
[1733534612236,0.56886,3999.7,3999.6,0.17476]
[1733534612842,0.17478,3999.3,3999.2,0.17477]
[1733534613340,0.3941,3999.7,3999.1,1.13051403]
[1733534613341,0.17478,3999.2,3999.1,1.13051403]
[1733534613641,0.17478,3999.3,3999.2,0.17477]
[1733534615038,0.1748,3998.7,3998.6,4.019]
[1733534615540,0.17481,3998.5,3998.4,0.17481]
[1733534616040,3.2078,3999.1,3998.2,3.84991409]
[1733534616237,0.17481,3998.5,3998.4,0.17481]
[1733534616434,0.17481,3998.6,3998.5,0.1748]
[1733534617530,0.3787,3998.9,3998.6,0.1748]
[1733534617531,0.1748,3998.7,3998.6,0.1748]
[1733534617736,0.1748,3998.8,3998.7,0.17479]
[1733534617931,0.1748,3998.8,3998.2,3.64486]
[1733534618131,0.17481,3998.5,3998.4,0.17481]
[1733534618934,0.1748,3998.6,3998.5,0.17481]
[1733534619246,2.34963032,3998.8,3998.1,1.0127178]
[1733534619247,0.17481,3998.4,3998.1,0.4015]
[1733534619541,0.17482,3998.2,3998.0,0.706]
[1733534619743,1.95123032,3998.4,3998.0,0.706]
[1733534619945,0.17482,3998.1,3998.0,0.706]
[1733534620446,0.17482,3998.1,3998.0,0.95585008]
[1733534620747,1.95123032,3998.4,3997.8,3.2078]
[1733534620935,0.17482,3998.2,3997.9,0.17483]
[1733534621136,0.17487,3997.0,3996.6,0.17489]
[1733534621338,1.95123032,3996.9,3996.5,3.2078]
[1733534621544,1.95123032,3996.9,3996.7,0.17488]
[1733534621744,2.12611032,3996.9,3996.6,0.17489]
[1733534621944,1.95123032,3996.9,3996.5,0.707]
[1733534622143,1.95123032,3996.9,3996.1,0.7814]
[1733534622144,0.17489,3996.7,3996.3,0.1749]
[1733534622445,0.17489,3996.6,3996.3,0.1749]
[1733534622950,5.15903032,3996.9,3996.1,0.58722307]
[1733534623143,0.17488,3996.8,3996.5,0.17489]
[1733534623653,5.15903032,3996.9,3996.2,0.707]
[1733534623850,5.33391032,3996.9,3996.6,0.17489]
[1733534624045,0.17488,3996.8,3996.5,0.17489]
[1733534624246,5.15903032,3996.9,3996.2,0.707]
[1733534624445,5.33391032,3996.9,3996.6,0.17489]
[1733534624650,0.17488,3996.8,3996.3,0.1749]
[1733534624949,5.33391032,3996.9,3996.6,0.17489]
[1733534625147,0.4129,3997.2,3996.5,0.24985008]
[1733534625352,5.15903032,3997.3,3996.6,0.4129]
[1733534625848,5.33389032,3997.3,3997.1,0.17487]
[1733534626053,3.2078,3997.3,3997.2,0.56416]
[1733534628347,1.95123032,3997.7,3997.3,0.17486]
[1733534628550,1.95123032,3997.7,3997.2,0.3893]
[1733534628956,1.95123032,3997.7,3997.6,0.17485]
[1733534629754,3.2078,3997.9,3997.4,0.707]
[1733534630053,3.2078,3997.9,3997.8,0.17484]
[1733534630552,1.95123032,3998.1,3997.5,0.3958]
[1733534630553,2.12606032,3998.1,3997.5,0.3958]
[1733534630749,1.95123032,3998.1,3997.5,0.3958]
[1733534631151,1.95123032,3998.1,3997.9,0.17483]
[1733534631347,1.95123032,3998.1,3998.0,0.17483]
[1733534633147,3.2078,3998.4,3998.3,0.17482]
[1733534633555,1.95123032,3998.5,3998.3,0.17482]
[1733534634151,1.95123032,3998.5,3998.4,0.17481]